bitfinex/quotes_SOLUSD_20250216
["timestamp","ask_amount","ask_price","bid_price","bid_amount"]
[1739722021578,8.49674107,190.28,190.26,0.03]
[1739722021796,8.49674107,190.27,190.26,0.03]
[1739722022310,20.0,190.24,190.22,0.03]
[1739722022490,8.49674107,190.23,190.22,0.03]
[1739722024184,5.2567,190.23,190.22,0.03]
[1739722024398,8.49674107,190.25,190.22,0.03]
[1739722024708,10.13394107,190.29,190.22,8.52674107]
[1739722025089,82.3,190.28,190.23,8.49674107]
[1739722025405,82.3,190.27,190.25,8.49674107]
[1739722025787,82.3,190.27,190.26,8.49674107]
[1739722029418,82.363,190.27,190.26,8.49674107]
[1739722032912,0.063,190.27,190.26,13.75264107]
[1739722034554,0.063,190.27,190.26,28.95258496]
[1739722034742,0.063,190.27,190.26,29.95258496]
[1739722036233,0.063,190.27,190.26,29.16443364]
[1739722038129,0.063,190.27,190.26,30.72723364]
[1739722038332,0.063,190.29,190.28,1.99994404]
[1739722038643,0.063,190.29,190.28,11.28471036]
[1739722039142,0.063,190.33,190.31,0.99994404]
[1739722039345,0.063,190.33,190.32,9.49668511]
[1739722039920,0.063,190.33,190.32,23.90853364]
[1739722040122,0.063,190.33,190.32,29.16283364]
[1739722040323,0.063,190.33,190.32,35.53773364]
[1739722042142,0.063,190.33,190.32,118.75773364]
[1739722042450,0.03,190.35,190.34,35.41179257]
[1739722042751,0.03,190.35,190.34,44.69620942]
[1739722043756,0.03,190.35,190.34,48.94990942]
[1739722043925,0.03,190.35,190.34,8.49674107]
[1739722044549,0.03,190.35,190.34,28.9500879]
[1739722045152,0.03,190.35,190.34,13.75044107]
[1739722045448,0.03,190.35,190.34,8.49674107]
[1739722047050,0.03,190.35,190.32,91.71674107]
[1739722047236,0.03,190.35,190.32,83.22]
[1739722047944,0.03,190.35,190.32,91.71674107]
[1739722048148,0.03,190.35,190.33,8.49674107]
[1739722049745,0.03,190.35,190.32,83.22]
[1739722050332,82.3,190.34,190.32,83.22]
[1739722050657,90.79674107,190.33,190.32,83.22]
[1739722050837,82.3,190.32,190.26,8.52674107]
[1739722051030,5.2548,190.3,190.26,0.03]
[1739722051227,82.3,190.31,190.26,0.03]
[1739722051646,87.5546,190.31,190.26,8.52674107]
[1739722051846,82.3,190.31,190.27,8.49674107]
[1739722052253,82.3,190.31,190.26,8.52674107]
[1739722052446,87.5546,190.31,190.26,8.52674107]
[1739722052652,87.5546,190.31,190.26,0.03]
[1739722052947,82.3,190.31,190.26,8.52674107]
[1739722053353,82.3,190.31,190.27,8.49674107]
[1739722054067,90.79674107,190.34,190.27,8.49674107]
[1739722054247,82.3,190.34,190.3,8.49674107]
[1739722054444,82.3,190.33,190.3,8.49674107]
[1739722055058,0.063,190.31,190.29,5.2549]
[1739722055367,0.063,190.31,190.3,8.49674107]
[1739722057054,82.363,190.31,190.29,8.49674107]
[1739722057271,82.363,190.31,190.28,8.49674107]
[1739722057565,82.363,190.31,190.27,8.49674107]
[1739722058242,82.363,190.31,190.26,0.03]
[1739722058442,82.3,190.3,190.26,0.03]
[1739722060465,82.3,190.3,190.26,13.28948407]
[1739722060845,82.3,190.3,190.27,13.25948407]
[1739722061572,82.3,190.3,190.29,13.25948407]
[1739722063169,82.3,190.3,190.28,13.25948407]
[1739722064348,82.3,190.3,190.29,13.25948407]
[1739722067956,82.3,190.3,190.29,18.51458407]
[1739722068776,0.063,190.31,190.29,18.51458407]
[1739722068947,0.063,190.31,190.3,13.25948407]
[1739722069972,0.063,190.31,190.3,18.51428407]
[1739722071071,0.063,190.31,190.3,19.30224922]
[1739722071600,0.063,190.31,190.3,18.51428407]
[1739722080672,0.063,190.31,190.3,8.4810788]
[1739722080891,0.063,190.31,190.3,13.7358788]
[1739722085793,0.063,190.31,190.29,8.4810788]
[1739722086171,0.063,190.31,190.28,91.7010788]
[1739722087275,0.063,190.31,190.29,5.2551]
[1739722087505,0.063,190.31,190.29,13.7361788]
[1739722088804,82.363,190.31,190.28,96.9564788]
[1739722092799,82.363,190.31,190.29,8.4810788]
[1739722093605,82.363,190.31,190.29,13.7360788]
[1739722096202,82.363,190.31,190.3,8.4810788]
[1739722096786,0.063,190.31,190.3,8.4810788]
[1739722097483,0.063,190.31,190.3,9.26904009]
[1739722098003,0.063,190.31,190.3,14.52384009]
[1739722098200,0.063,190.31,190.3,63.85994786]
[1739722106707,0.063,190.31,190.3,29.93563266]
[1739722110403,0.063,190.31,190.3,63.85994786]
[1739722112725,0.063,190.31,190.3,147.05994786]
[1739722112903,0.063,190.31,190.3,146.27198657]
[1739722113931,0.063,190.33,190.32,21.99994404]
[1739722114227,0.063,190.33,190.32,31.26882057]
[1739722115241,0.063,190.33,190.32,36.52312057]
[1739722116536,0.03,190.35,190.34,0.99994404]
[1739722116739,0.03,190.35,190.34,11.26877947]
[1739722117431,0.03,190.35,190.34,94.46877947]
[1739722117635,0.03,190.35,190.34,93.46877947]
[1739722117840,0.03,190.35,190.34,99.72247947]
[1739722118441,0.03,190.35,190.34,101.84165815]
[1739722118607,0.03,190.35,190.34,99.72247947]
[1739722120822,0.03,190.35,190.34,101.81040681]
[1739722121021,0.03,190.35,190.34,115.22225534]
[1739722121229,0.03,190.35,190.34,114.43449871]
[1739722121738,1.5916,190.41,190.37,0.99994404]
[1739722121921,1.5916,190.41,190.4,8.4810788]
[1739722123534,1.5916,190.41,190.4,21.89292733]
[1739722123732,82.363,190.43,190.4,21.89292733]
[1739722123937,82.363,190.43,190.42,8.4810788]
[1739722124161,0.063,190.43,190.42,8.4810788]
[1739722131149,0.063,190.43,190.42,13.7325788]
[1739722132050,0.063,190.43,190.42,27.14442733]
[1739722132838,0.063,190.43,190.42,28.14437137]
[1739722135250,0.063,190.43,190.42,29.14437137]
[1739722135668,0.063,190.49,190.47,0.99994404]
[1739722135844,0.063,190.49,190.48,21.89292733]
[1739722136442,0.063,190.49,190.48,22.89287137]
[1739722136640,0.063,190.49,190.48,21.89292733]
[1739722137140,0.063,190.49,190.48,27.14272733]
[1739722137551,0.063,190.49,190.48,21.89292733]
[1739722138060,0.063,190.49,190.48,8.4810788]
[1739722138263,0.063,190.49,190.47,8.4810788]
[1739722138461,0.063,190.49,190.46,8.4810788]
[1739722138765,0.063,190.49,190.48,8.4810788]
[1739722142969,82.363,190.49,190.48,8.4810788]
[1739722143888,82.363,190.49,190.44,0.78734955]
[1739722143889,0.063,190.49,190.44,8.4810788]
[1739722144052,1.548,190.48,190.43,8.4810788]
[1739722144374,82.3,190.47,190.43,8.4810788]
[1739722144980,82.3,190.47,190.44,8.4810788]
[1739722146461,82.3,190.47,190.44,13.7319788]
[1739722146664,82.3,190.47,190.46,8.4810788]
[1739722147459,82.3,190.47,190.46,21.89292733]
[1739722147879,82.3,190.47,190.46,22.89287137]
[1739722148258,82.3,190.47,190.46,28.14327137]
[1739722148584,0.063,190.49,190.47,14.41179257]
[1739722148783,0.063,190.49,190.48,8.4810788]
[1739722149660,0.063,190.49,190.48,13.7308788]
[1739722150584,0.063,190.49,190.48,29.14267137]
[1739722150953,0.063,190.49,190.48,29.92985297]
[1739722155086,0.063,190.49,190.48,16.51800444]
[1739722155787,0.063,190.49,190.48,29.92985297]
[1739722157568,0.03,190.51,190.5,35.41179257]
[1739722157878,0.03,190.51,190.5,78.60427689]
[1739722158684,0.03,190.51,190.5,65.19242836]
[1739722158879,0.03,190.51,190.5,83.85357689]
[1739722159859,0.03,190.51,190.5,49.92926169]
[1739722160062,0.03,190.51,190.5,83.85357689]
[1739722160573,0.03,190.51,190.5,166.99357689]
[1739722160765,0.03,190.51,190.5,166.20648657]
[1739722162368,0.063,190.53,190.52,1.99994404]
[1739722162571,0.063,190.53,190.52,23.89287137]
[1739722164090,0.0001,190.53,190.52,23.89287137]
[1739722164469,0.0001,190.53,190.52,29.14157137]
[1739722177276,0.0001,190.55,190.54,1.99994404]
[1739722177493,0.0001,190.55,190.54,24.67978389]
[1739722178401,0.0001,190.55,190.54,29.92798389]
[1739722179809,0.0001,190.55,190.54,113.02798389]
[1739722179994,0.0001,190.55,190.54,112.24107137]
[1739722192987,0.03,190.58,190.57,20.99994404]
[1739722193195,0.03,190.58,190.57,43.89287137]
[1739722194195,0.03,190.58,190.57,41.89292733]
[1739722194610,0.03,190.58,190.57,42.89287137]
[1739722194810,0.03,190.58,190.57,41.89292733]
[1739722195111,0.03,190.58,190.57,48.14032733]
[1739722195302,0.03,190.58,190.57,49.14027137]
[1739722199027,0.03,190.58,190.57,132.24027137]
[1739722200913,0.03,190.61,190.6,20.0]
[1739722201117,0.03,190.61,190.6,28.4810788]
[1739722201304,0.03,190.61,190.6,33.7275788]
[1739722201716,0.03,190.61,190.6,47.13942733]
[1739722201916,0.03,190.61,190.6,83.06368657]
[1739722202124,0.03,190.61,190.6,47.13942733]
[1739722202418,0.03,190.65,190.61,1.99994404]
[1739722202623,0.03,190.65,190.61,15.41179257]
[1739722203223,0.03,190.65,190.61,27.13922733]
[1739722203525,6.4325,190.65,190.61,5.2463]
[1739722203823,1.6517,190.62,190.61,5.2463]
[1739722204022,1.6517,190.62,190.6,28.4810788]
[1739722204199,1.6517,190.62,190.6,8.4810788]
[1739722205203,1.6517,190.62,190.59,21.89292733]
[1739722205604,1.6517,190.62,190.6,8.4810788]
[1739722206318,1.6517,190.62,190.61,8.4810788]
[1739722206699,1.6517,190.62,190.61,8.5440788]
[1739722207599,0.03,190.62,190.61,27.20222733]
[1739722208123,0.03,190.62,190.61,28.20222733]
[1739722208307,0.03,190.62,190.61,29.98884837]
[1739722211431,0.03,190.62,190.61,28.98884837]
[1739722212099,0.03,190.62,190.61,27.20222733]
[1739722214831,0.03,190.62,190.61,110.28222733]
[1739722215321,0.03,190.62,190.61,105.03592733]
[1739722215528,0.03,190.62,190.61,91.6240788]
[1739722216526,0.03,190.62,190.61,83.143]
[1739722217812,8.0045,190.62,190.61,83.143]
[1739722221755,1.6557,190.62,190.61,83.143]
[1739722221941,1.6557,190.62,190.61,96.8703788]
[1739722222941,0.03,190.62,190.61,110.28222733]
[1739722229120,0.03,190.63,190.62,15.41179257]
[1739722229326,0.03,190.65,190.64,34.41179257]
[1739722229536,0.03,190.65,190.64,42.89287137]
[1739722230029,0.03,190.65,190.64,43.67938833]
[1739722230344,0.03,190.65,190.64,41.89292733]
[1739722231232,0.03,190.65,190.64,47.13832733]
[1739722233860,0.03,190.65,190.64,48.92483985]
[1739722234058,0.0001,190.65,190.64,48.92483985]
[1739722235157,0.03,190.75,190.7,14.41179257]
[1739722235340,0.03,190.75,190.74,8.4810788]
[1739722236340,0.03,190.75,190.74,21.89292733]
[1739722237462,0.03,190.75,190.74,27.13562733]
[1739722238926,0.03,190.75,190.74,110.19562733]
[1739722240126,0.03,190.75,190.74,104.95292733]
[1739722241230,0.03,190.75,190.74,91.5410788]
[1739722246467,0.03,190.75,190.74,96.7837788]
[1739722246937,0.03,190.75,190.74,110.19562733]
[1739722252783,0.03,190.75,190.74,91.5410788]
[1739722253641,0.03,190.75,190.74,96.7837788]
[1739722254472,0.03,190.75,190.74,110.19562733]
[1739722257978,0.03,190.75,190.74,111.19557137]
[1739722258985,0.03,190.75,190.74,110.19562733]
[1739722259184,0.03,190.75,190.74,111.19557137]
[1739722261660,1.5608,190.81,190.78,20.0]
[1739722261862,1.5608,190.81,190.8,13.7220788]
[1739722262187,1.5608,190.81,190.79,8.4810788]
[1739722262375,1.5608,190.81,190.77,8.4810788]
[1739722262554,1.5608,190.81,190.76,13.7231788]
[1739722262751,1.5608,190.81,190.76,8.4810788]
[1739722262953,1.5608,190.81,190.77,83.02]
[1739722264292,1.5608,190.81,190.78,8.4810788]
[1739722264777,1.5608,190.81,190.77,91.5010788]
[1739722265383,1.5608,190.81,190.77,96.7428788]
[1739722265989,1.5608,190.81,190.78,8.4810788]
[1739722266186,1.5608,190.81,190.79,8.4810788]
[1739722266583,1.5608,190.81,190.78,8.4810788]
[1739722266778,1.5908,190.81,190.78,8.4810788]
[1739722267362,1.5908,190.81,190.77,83.02]
[1739722267583,83.8908,190.81,190.77,83.02]
[1739722268289,83.8908,190.81,190.77,88.2618]
[1739722268487,83.8908,190.81,190.77,96.7428788]
[1739722268990,83.8908,190.81,190.77,91.5010788]
[1739722269365,83.8908,190.81,190.77,83.02]
[1739722269692,90.7810788,190.8,190.77,83.02]
[1739722270064,82.3,190.8,190.77,83.02]
[1739722270260,87.5412,190.8,190.77,83.02]
[1739722270465,87.5412,190.8,190.75,0.063]
[1739722270883,15.0445788,190.79,190.75,0.063]
[1739722272592,20.2860788,190.79,190.75,0.063]
[1739722273494,8.4810788,190.78,190.75,0.063]
[1739722273790,82.3,190.78,190.75,0.063]
[1739722273972,82.3,190.78,190.75,8.5440788]
[1739722274993,82.3,190.78,190.75,13.7862788]
[1739722275177,82.3,190.78,190.77,8.4810788]
[1739722276104,1.5908,190.81,190.77,8.4810788]
[1739722276397,1.5908,190.81,190.79,8.4810788]
[1739722277372,1.5908,190.81,190.79,13.7222788]
[1739722277880,1.5908,190.81,190.76,91.5010788]
[1739722278203,1.5908,190.81,190.76,83.02]
[1739722278775,1.5908,190.81,190.76,96.7431788]
[1739722279501,82.3,190.8,190.76,96.7431788]
[1739722279788,82.3,190.8,190.79,8.4810788]
[1739722281193,0.03,190.81,190.8,5.241]
[1739722281495,0.03,190.81,190.8,13.7220788]
[1739722282580,0.03,190.81,190.8,8.4810788]
[1739722283495,0.03,190.81,190.79,8.4810788]
[1739722283686,0.03,190.81,190.78,8.4810788]
[1739722286299,0.03,190.81,190.79,8.4810788]
[1739722286492,0.03,190.81,190.8,8.4810788]
[1739722287482,0.03,190.81,190.8,13.7220788]
[1739722289104,0.03,190.81,190.8,8.4810788]
[1739722289699,0.03,190.81,190.8,13.7220788]
[1739722292910,0.03,190.81,190.76,96.7431788]
[1739722293116,8.5110788,190.81,190.76,83.02]
[1739722293512,0.03,190.81,190.76,96.7431788]
[1739722294221,13.7518788,190.81,190.76,83.02]
[1739722294808,8.5110788,190.81,190.76,88.2621]
[1739722295009,0.03,190.81,190.76,88.2621]
[1739722295420,0.03,190.81,190.76,96.7431788]
[1739722295625,0.03,190.81,190.77,8.4810788]
[1739722296835,0.03,190.81,190.78,8.4810788]
[1739722297023,0.03,190.81,190.79,8.4810788]
[1739722297701,0.03,190.81,190.8,5.241]
[1739722300825,0.03,190.81,190.79,8.4810788]
[1739722301024,0.03,190.81,190.77,13.7229788]
[1739722302132,0.03,190.81,190.79,8.4810788]
[1739722302340,0.03,190.81,190.78,8.4810788]
[1739722302506,0.03,190.81,190.79,5.2413]
[1739722304817,0.03,190.81,190.79,13.7223788]
[1739722306410,0.03,190.81,190.8,13.7220788]
[1739722309627,0.03,190.81,190.8,27.13392733]
[1739722309950,0.03,190.81,190.8,13.7220788]
[1739722315729,0.03,190.81,190.8,8.4810788]
[1739722315930,0.03,190.81,190.8,13.7220788]
[1739722318646,0.03,190.81,190.8,96.7220788]
[1739722322229,0.03,190.81,190.8,110.13392733]
[1739722329331,0.03,190.81,190.8,144.05824253]
[1739722329755,0.03,190.81,190.8,110.13392733]
[1739722331260,0.03,190.81,190.8,144.05824253]
[1739722332846,0.03,190.81,190.8,110.13392733]
[1739722336471,0.03,190.81,190.8,91.4810788]
[1739722336768,0.03,190.81,190.8,83.0]
[1739722341151,0.03,190.81,190.8,88.241]
[1739722341467,0.03,190.81,190.8,96.7220788]
[1739722343960,0.03,190.81,190.8,110.13392733]
[1739722344161,0.03,190.85,190.83,20.0]
[1739722344362,0.03,190.85,190.84,8.4810788]
[1739722346188,0.03,190.85,190.84,13.7209788]
[1739722346488,8.4810788,190.91,190.84,13.7209788]
[1739722346489,0.03,190.95,190.91,0.99994404]
[1739722346784,0.03,190.95,190.94,8.4810788]
[1739722346988,0.03,190.95,190.94,21.89292733]
[1739722347883,0.03,190.95,190.94,8.4810788]
[1739722348368,0.03,190.95,190.94,13.7182788]
[1739722348958,0.03,190.95,190.94,27.13012733]
[1739722350692,0.03,190.95,190.94,8.4810788]
[1739722352190,0.03,190.95,190.94,13.7182788]
[1739722353264,0.03,190.95,190.94,8.4810788]
[1739722355389,0.03,190.95,190.94,91.4410788]
[1739722358665,0.03,190.95,190.94,96.6782788]
[1739722362002,0.03,190.95,190.94,110.09012733]
[1739722364876,0.03,191.01,190.97,20.0]
[1739722365095,0.03,191.01,190.99,8.4810788]
[1739722366502,0.03,191.01,190.98,91.4210788]
[1739722367795,0.03,191.01,190.98,82.94]
[1739722367991,5.2356,191.0,190.98,82.94]
[1739722368190,13.7166788,191.0,190.98,82.94]
[1739722369115,5.2356,191.0,190.98,82.94]
[1739722369788,5.2356,191.0,190.95,8.4810788]
[1739722370103,13.7166788,191.0,190.94,8.4810788]
[1739722370612,5.2356,191.0,190.95,8.4810788]
[1739722371602,13.7166788,191.0,190.93,91.4210788]
[1739722371809,90.7810788,190.99,190.93,91.4210788]
[1739722372309,8.4810788,190.98,190.93,82.94]
[1739722373317,90.7810788,190.99,190.93,91.4210788]
[1739722373812,96.0171788,190.99,190.93,91.4210788]
[1739722376607,90.7810788,190.99,190.93,96.6583788]
[1739722376794,82.3,190.99,190.94,8.4810788]
[1739722377199,96.0169788,190.99,190.93,91.4210788]
[1739722378593,96.0169788,190.99,190.93,91.4840788]
[1739722379304,96.0169788,190.99,190.93,96.7213788]
[1739722380304,87.5359,190.99,190.93,96.7213788]
[1739722382007,90.7810788,190.99,190.93,83.003]
[1739722382190,8.4810788,190.98,190.93,83.003]
[1739722383515,8.4810788,190.97,190.93,83.003]
[1739722384012,13.7174788,190.97,190.93,83.003]
[1739722385009,8.4810788,190.97,190.93,83.003]
[1739722385701,13.7171788,190.98,190.93,83.003]
[1739722385908,82.33,191.0,190.93,83.003]
[1739722385909,8.4810788,190.99,190.93,88.2404]
[1739722386105,82.33,191.0,190.94,8.4810788]
[1739722386309,90.8110788,191.0,190.93,96.7214788]
[1739722386484,8.4810788,190.99,190.93,88.2404]
[1739722386684,90.8110788,191.0,190.93,96.7214788]
[1739722388714,8.4810788,190.99,190.93,88.2404]
[1739722389007,8.4810788,190.99,190.93,5.3004]
[1739722389991,8.4810788,190.99,190.93,0.063]
[1739722390206,13.7169788,190.99,190.93,0.063]
[1739722391116,8.4810788,190.99,190.93,0.063]
[1739722392612,8.5110788,190.99,190.93,0.063]
[1739722394304,13.7468788,190.99,190.93,0.063]
[1739722394512,8.5110788,190.99,190.93,0.063]
[1739722394827,0.03,190.99,190.93,8.5440788]
[1739722395714,0.03,190.99,190.93,13.7813788]
[1739722396021,8.5110788,190.99,190.93,5.3003]
[1739722396397,8.5110788,190.99,190.93,0.063]
[1739722396992,8.4810788,190.96,190.93,0.063]
[1739722398911,13.7177788,190.96,190.93,0.063]
[1739722399905,13.7182788,190.94,190.93,0.063]
[1739722400104,96.0182788,190.94,190.93,0.063]
[1739722404307,13.7182788,190.94,190.93,0.063]
[1739722405630,14.7182788,190.94,190.93,0.063]
[1739722405821,29.13012733,190.94,190.93,0.063]
[1739722406429,8.4810788,190.87,190.85,0.063]
[1739722407114,1.0,190.91,190.85,0.063]
[1739722407115,8.4810788,190.86,190.85,0.063]
[1739722407510,13.7204788,190.86,190.85,0.063]
[1739722409840,8.4810788,190.86,190.85,0.063]
[1739722411226,13.7204788,190.86,190.85,0.063]
[1739722413628,8.4810788,190.86,190.85,0.063]
[1739722414362,13.7204788,190.86,190.85,0.063]
[1739722420143,8.4810788,190.86,190.85,0.063]
[1739722420349,8.4810788,190.87,190.85,0.063]
[1739722421818,5.2389,190.88,190.85,0.063]
[1739722421819,8.4810788,190.88,190.85,0.063]
[1739722423020,13.7199788,190.88,190.85,0.063]
[1739722423248,8.4810788,190.86,190.85,0.063]
[1739722424743,8.4810788,190.87,190.85,0.063]
[1739722424943,8.4810788,190.88,190.85,0.063]
[1739722425125,8.4810788,190.89,190.85,0.063]
[1739722426448,8.4810788,190.88,190.85,0.063]
[1739722428222,5.2385,190.9,190.85,0.063]
[1739722429749,8.4810788,190.89,190.85,0.063]
[1739722432344,13.7197788,190.89,190.85,0.063]
[1739722432649,8.4810788,190.88,190.85,0.063]
[1739722435052,8.4810788,190.89,190.85,0.063]
[1739722435751,8.4810788,190.88,190.85,0.063]
[1739722436967,8.4810788,190.87,190.85,0.063]
[1739722438961,8.4810788,190.88,190.85,0.063]
[1739722439254,8.4810788,190.89,190.85,0.063]
[1739722440028,82.3,190.88,190.85,0.063]
[1739722454967,8.4810788,190.86,190.85,0.063]
[1739722455869,13.7204788,190.86,190.85,0.063]
[1739722484071,14.7204788,190.86,190.85,0.063]
[1739722490311,13.7204788,190.86,190.85,0.063]
[1739722491902,14.7204788,190.86,190.85,0.063]
[1739722496306,13.7204788,190.86,190.85,0.063]
[1739722499606,5.2394,190.86,190.85,0.063]
[1739722499810,13.7201788,190.87,190.85,0.063]
[1739722499985,8.4810788,190.88,190.85,0.063]
[1739722500188,8.4810788,190.89,190.85,0.063]
[1739722500494,8.4810788,190.86,190.85,0.063]
[1739722501782,13.7204788,190.86,190.85,0.063]
[1739722505116,15.7204788,190.86,190.85,0.063]
[1739722505490,29.13232733,190.86,190.85,0.063]
[1739722505822,8.4810788,190.78,190.76,83.02]
[1739722506032,90.7810788,190.77,190.76,83.02]
[1739722507299,13.7229788,190.77,190.76,83.02]
[1739722508619,8.4810788,190.77,190.76,83.02]
[1739722509422,8.4810788,190.78,190.76,83.02]
[1739722509622,8.4810788,190.78,190.75,0.063]
[1739722509810,82.3,190.77,190.75,0.063]
[1739722512721,8.4810788,190.76,190.75,0.063]
[1739722516040,13.7231788,190.76,190.75,0.063]
[1739722519340,15.7231788,190.76,190.75,0.063]
[1739722520237,29.13502733,190.76,190.75,0.063]
[1739722520733,10.4810788,190.74,190.73,0.063]
[1739722520943,15.7237788,190.74,190.73,0.063]
[1739722521625,29.13562733,190.74,190.73,0.063]
[1739722523040,15.7237788,190.74,190.73,0.063]
[1739722525207,29.13562733,190.74,190.73,0.063]
[1739722530043,28.13562733,190.74,190.73,0.063]
[1739722530233,29.13562733,190.74,190.73,0.063]
[1739722531342,14.7237788,190.74,190.73,0.063]
[1739722531548,15.7237788,190.74,190.73,0.063]
[1739722534744,13.7237788,190.74,190.73,0.063]
[1739722539557,8.4810788,190.74,190.73,0.063]
[1739722540056,13.7237788,190.74,190.73,0.063]
[1739722540347,8.4810788,190.74,190.73,0.063]
[1739722540532,8.4810788,190.75,190.73,0.063]
[1739722540849,8.4810788,190.74,190.73,0.063]
[1739722547359,8.4810788,190.75,190.73,0.063]
[1739722547670,8.4810788,190.76,190.73,0.063]
[1739722548138,8.4810788,190.77,190.73,0.063]
[1739722548665,82.3,190.76,190.73,0.063]
[1739722548971,82.3,190.76,190.73,8.5440788]
[1739722549471,82.3,190.76,190.74,8.4810788]
[1739722550854,82.3,190.76,190.74,13.7236788]
[1739722551732,82.3,190.76,190.74,5.2426]
[1739722557571,82.33,190.76,190.74,5.2426]
[1739722560464,0.03,190.76,190.75,8.4810788]
[1739722560961,0.03,190.76,190.75,13.7234788]
[1739722561167,0.03,190.76,190.75,5.2424]
[1739722562067,0.03,190.76,190.74,5.2427]
[1739722562258,0.03,190.76,190.73,0.063]
[1739722562459,0.03,190.76,190.73,5.3059]
[1739722565671,0.03,190.76,190.73,13.7869788]
[1739722565974,0.03,190.76,190.74,8.4810788]
[1739722566154,0.03,190.76,190.75,8.4810788]
[1739722566358,0.03,190.76,190.74,5.2425]
[1739722567776,0.03,190.76,190.73,0.063]
[1739722567960,0.03,190.76,190.73,5.306]
[1739722568653,0.03,190.76,190.74,8.4810788]
[1739722569361,0.03,190.76,190.73,13.7870788]
[1739722569572,0.03,190.76,190.73,5.306]
[1739722570156,8.5110788,190.76,190.74,0.063]
[1739722570465,8.4810788,190.75,190.74,0.063]
[1739722570663,90.7810788,190.75,190.74,0.063]
[1739722570868,8.4810788,190.75,190.74,0.063]
[1739722572581,13.7234788,190.75,190.74,0.063]
[1739722575183,8.4810788,190.75,190.74,0.063]
[1739722575872,13.7234788,190.75,190.74,0.063]
[1739722576750,14.7234788,190.75,190.74,0.063]
[1739722576956,13.7234788,190.75,190.74,0.063]
[1739722581358,14.7234788,190.75,190.74,0.063]
[1739722581557,13.7234788,190.75,190.74,0.063]
[1739722584185,13.7534788,190.75,190.74,0.063]
[1739722586691,8.5110788,190.75,190.74,0.063]
[1739722589075,13.7534788,190.75,190.74,0.063]
[1739722590570,14.7534788,190.75,190.74,0.063]
[1739722591182,2.0,190.74,190.73,0.063]
[1739722591469,25.52462733,190.74,190.73,0.063]
[1739722593374,30.76732733,190.74,190.73,0.063]
[1739722597304,29.76732733,190.74,190.73,0.063]
[1739722597598,16.3554788,190.74,190.73,0.063]
[1739722597791,17.3554788,190.74,190.73,0.063]
[1739722597986,16.3554788,190.74,190.73,0.063]
[1739722598699,15.3554788,190.74,190.73,0.063]
[1739722598894,13.7237788,190.74,190.73,0.063]
[1739722600303,13.7537788,190.74,190.73,0.063]
[1739722601004,5.2727,190.74,190.73,0.063]
[1739722602298,0.03,190.74,190.73,0.063]
[1739722602608,8.5110788,190.74,190.73,0.063]
[1739722603510,13.7537788,190.74,190.73,0.063]
[1739722629921,1.0,190.73,190.65,6.1254]
[1739722630224,8.4810788,190.66,190.65,6.1254]
[1739722630432,8.4810788,190.66,190.65,0.063]
[1739722630612,13.7259788,190.66,190.65,0.063]
[1739722636147,14.7259788,190.66,190.65,0.063]
[1739722637733,15.7259788,190.66,190.65,0.063]
[1739722641933,29.13782733,190.66,190.65,0.063]
[1739722643848,13.7259788,190.66,190.65,0.063]
[1739722644548,8.4810788,190.66,190.65,0.063]
[1739722644742,1.0,190.71,190.65,0.063]
[1739722644743,8.4810788,190.67,190.65,0.063]
[1739722645045,8.4810788,190.69,190.65,0.063]
[1739722646346,8.4810788,190.67,190.65,0.063]